bitfinex-derivatives/quotes_ETHF0:USTF0_20250403
["timestamp","ask_amount","ask_price","bid_price","bid_amount"]
[1743686329243,1.13279,1765.9,1765.8,1.13277]
[1743686329447,6.7406,1766.1,1766.0,1.1327]
[1743686330745,1.13262,1766.2,1766.1,1.13264]
[1743686332050,9.02580509,1766.5,1766.1,6.0394]
[1743686332238,1.13249,1766.4,1766.3,1.13247]
[1743686332947,1.1327,1766.1,1766.0,1.13267]
[1743686333938,1.13262,1766.2,1766.1,1.1326]
[1743686335148,1.13267,1766.1,1766.0,1.13266]
[1743686335549,7.13036,1766.3,1766.2,1.13257]
[1743686335738,6.23580509,1766.5,1766.2,1.13257]
[1743686335739,0.00850509,1766.5,1766.4,1.13245]
[1743686336253,0.00850509,1766.5,1766.4,3.63245]
[1743686336447,0.00850509,1766.5,1766.4,44.43245]
[1743686336945,0.00850509,1766.5,1766.4,41.93245]
[1743686337145,0.00850509,1766.5,1766.4,44.43245]
[1743686337357,3.2078,1767.1,1766.6,2.8308]
[1743686337553,12.0769,1767.1,1766.7,8.8589]
[1743686338051,1.13219,1766.8,1766.7,9.9911]
[1743686338251,1.13217,1766.9,1766.8,1.13217]
[1743686338554,1.13219,1766.8,1766.7,9.99111]
[1743686338745,1.14062509,1766.9,1766.8,1.13219]
[1743686339047,0.00850509,1766.9,1766.8,1.13219]
[1743686339447,63.17961524,1767.9,1766.8,1.13219]
[1743686339448,3.2078,1767.5,1766.8,2.5]
[1743686339650,5.893,1767.6,1767.5,1.13174]
[1743686340359,1.13174,1767.5,1767.4,2.9612]
[1743686340651,1.1318,1767.4,1767.3,6.20881]
[1743686340847,2.82938,1767.5,1767.3,0.00850509]
[1743686341057,5.893,1767.4,1767.3,0.00850509]
[1743686341249,5.893,1767.4,1767.3,1.14037509]
[1743686341548,7.0248,1767.4,1767.3,0.00850509]
[1743686341959,10.2326,1767.4,1767.3,0.00850509]
[1743686344652,1.13219,1766.8,1766.7,6.98142]
[1743686345155,1.13219,1766.8,1766.7,6.98143]
[1743686345349,1.13225,1766.7,1766.5,9.10444]
[1743686345548,1.13232,1766.6,1766.5,15.24664]
[1743686345849,3.2078,1767.0,1766.7,1.13225]
[1743686346056,1.13204,1767.1,1766.7,1.13225]
[1743686346257,7.23264,1767.1,1767.0,1.13206]
[1743686346554,0.00850509,1767.1,1767.0,1.13206]
[1743686347052,1.14050509,1767.1,1767.0,6.1422]
[1743686347252,1.14050509,1767.1,1767.0,48.07426]
[1743686347457,0.00850509,1767.1,1767.0,48.07426]
[1743686347648,0.00850509,1767.1,1767.0,53.78206]
[1743686349954,1.13162,1767.7,1767.6,1.13168]
[1743686350250,1.13168,1767.6,1767.5,1.13172]
[1743686350450,5.953,1767.6,1767.5,1.13172]
[1743686350850,5.953,1767.6,1767.5,7.23692]
[1743686351049,7.08468,1767.6,1767.5,7.23692]
[1743686351260,5.953,1767.6,1767.5,7.23692]
[1743686351653,1.14015509,1767.7,1767.5,7.23692]
[1743686351654,0.00850509,1767.7,1767.6,1.13168]
[1743686352150,1.14011509,1767.7,1767.6,1.13168]
[1743686352558,0.00850509,1767.7,1767.6,1.13168]
[1743686353349,1.13139,1768.1,1768.0,1.13142]
[1743686353560,6.89159,1768.1,1768.0,1.13142]
[1743686353755,7.24827,1768.3,1767.9,2.82871]
[1743686353955,5.7602,1768.2,1768.1,1.13136]
[1743686354162,5.7602,1768.2,1768.1,6.74996]
[1743686354354,5.7602,1768.2,1768.1,47.54996]
[1743686354554,3.0665,1768.4,1768.1,49.24689]
[1743686354751,3.2078,1768.7,1768.3,1.13123]
[1743686354951,3.2078,1768.9,1768.5,2.82767]
[1743686355154,8.9778,1768.9,1768.8,1.13091]
[1743686355362,6.0295,1769.2,1768.8,11.09892]
[1743686355553,4.33844,1769.3,1769.2,1.13065]
[1743686355757,1.13054,1769.4,1769.2,1.13065]
[1743686355958,1.13048,1769.5,1769.3,1.13054]
[1743686356159,24.73955869,1769.6,1769.2,7.88963]
[1743686356356,21.53175869,1769.6,1769.5,4.33826]
[1743686357066,21.53175869,1769.6,1769.5,40.8]
[1743686357253,21.53175869,1769.6,1769.5,41.93046]
[1743686357569,22.66215869,1769.6,1769.5,40.8]
[1743686357753,7.0732,1769.6,1769.5,40.8]
[1743686357958,5.9428,1769.6,1769.5,40.8]
[1743686358260,6.1505,1769.9,1769.5,40.8]
[1743686358654,7.0731,1769.8,1769.6,6.1638]
[1743686358854,3.2078,1770.0,1769.6,11.2238]
[1743686359072,5.9428,1770.1,1770.0,1.13014]
[1743686359363,4.33775,1770.4,1770.1,1.13004]
[1743686359559,10.2805,1770.4,1770.2,1.13]
[1743686359765,9.1506,1770.4,1770.1,6.1638]
[1743686359966,3.2078,1770.2,1770.1,0.00848032]
[1743686360155,4.33781,1770.2,1770.1,0.00848032]
[1743686360568,6.83781,1770.2,1770.1,0.00848032]
[1743686360862,6.83781,1770.2,1770.1,3.2e-07]
[1743686361257,12.98311,1770.2,1770.1,3.2e-07]
[1743686361759,2.82584,1769.7,1769.2,1.1306]
[1743686361960,6.1453,1769.6,1769.2,6.0524]
[1743686362266,3.2078,1769.9,1769.3,3.2078]
[1743686362564,3.2078,1770.1,1770.0,1.13014]
[1743686362758,4.3377,1770.4,1769.9,2.82552]
[1743686363061,4.33732,1771.0,1770.2,3.2078]
[1743686363262,1.12982,1770.6,1770.4,4.33767]
[1743686363463,3.21619777,1770.8,1770.3,51.9064]
[1743686363663,6.03222,1770.6,1770.3,40.8]
[1743686363962,6.03222,1770.6,1769.9,0.00848032]
[1743686363963,3.2078,1770.4,1769.9,0.00848032]
[1743686364166,6.06,1770.3,1769.9,0.00848032]
[1743686364364,1.13014,1770.0,1769.9,0.00848032]
[1743686364866,7.19014,1770.0,1769.9,0.00848032]
[1743686365965,1.13014,1770.0,1769.9,0.00848032]
[1743686366167,9.2678,1770.5,1770.1,1.13005]
[1743686366370,9.2678,1770.5,1770.2,6.1633]
[1743686366664,3.2078,1770.5,1770.1,3.2078]
[1743686366968,0.00839777,1770.8,1770.7,1.1297]
[1743686367158,3.2078,1771.2,1770.7,1.1297]
[1743686367159,1.12941,1771.2,1771.0,1.12946]
[1743686367464,3.2078,1771.4,1770.9,1.12953]
[1743686367465,1.12946,1771.1,1770.9,1.12953]
[1743686367663,6.88966,1771.1,1771.0,46.7251]
[1743686367869,9.38966,1771.1,1771.0,40.8]
[1743686368060,1.12975,1770.7,1770.5,7.05488]
[1743686368262,3.2078,1770.6,1770.2,57.004]
[1743686368456,1.13001,1770.2,1770.1,3.0703]
[1743686368662,1.12999,1770.3,1770.2,0.00848032]
[1743686369664,1.13018,1770.0,1769.8,7.05537]
[1743686369865,1.13013,1770.1,1769.9,1.13021]
[1743686370067,7.01892,1770.2,1769.9,3.2078]
[1743686370272,1.13008,1770.1,1770.0,6.1575]
[1743686370569,3.2078,1770.5,1769.9,11.08132]
[1743686370764,0.00848031,1770.2,1770.1,1.13008]
[1743686370965,3.2078,1770.7,1770.1,9.02656]
[1743686371170,3.2078,1770.9,1770.3,6.03254]
[1743686371461,2.82331,1771.3,1770.5,6.03222]
[1743686371462,3.2078,1771.2,1770.5,6.03222]
[1743686371668,9.0967,1771.2,1770.6,6.1575]
[1743686371862,9.0967,1771.2,1770.8,1.12963]
[1743686371863,1.12957,1770.9,1770.8,1.12963]
[1743686372165,11.92017,1771.2,1770.8,6.1575]
[1743686372370,1.12957,1770.9,1770.8,7.2871]
[1743686372563,1.12963,1770.8,1770.7,0.00848032]
[1743686372764,7.01853,1770.8,1770.7,0.00848032]
[1743686373272,5.8889,1770.8,1770.7,0.00848032]
[1743686373464,7.01853,1770.8,1770.7,0.00848032]
[1743686373665,5.8889,1770.8,1770.7,0.00848032]
[1743686374167,11.21314,1770.8,1770.2,3.2078]
[1743686374674,6.90978,1770.3,1770.1,1.13004]
[1743686374879,5.7798,1770.3,1770.1,1.13004]
[1743686375172,1.13001,1770.2,1770.0,7.2727]
[1743686375374,1.13001,1770.2,1770.1,40.8]
[1743686377067,1.13001,1770.2,1770.0,0.00848032]
[1743686377068,1.13008,1770.1,1770.0,0.00848032]
[1743686377465,3.63008,1770.1,1770.0,0.00848032]
[1743686378565,1.13008,1770.1,1770.0,0.00848032]
[1743686378765,1.13008,1770.1,1770.0,1.13862032]
[1743686379173,1.13008,1770.1,1770.0,0.00848032]
[1743686379468,3.2078,1770.2,1770.0,0.00848032]
[1743686379673,1.13008,1770.1,1770.0,0.00848032]
[1743686381766,3.63008,1770.1,1770.0,3.2e-07]
[1743686381970,5.3721,1770.1,1769.1,3.2078]
[1743686382171,1.13059,1769.3,1769.2,6.7406]
[1743686382368,4.33832,1769.5,1769.4,1.13053]
[1743686382668,3.2078,1769.5,1769.4,1.13053]
[1743686383071,1.13046,1769.5,1769.4,1.13053]
[1743686383572,1.13046,1769.5,1769.3,0.00848032]
[1743686383573,1.13053,1769.4,1769.3,0.00848032]
[1743686384078,1.21338376,1769.4,1769.3,0.00848032]
[1743686384565,1.21338376,1769.4,1769.3,5.61848032]
[1743686384969,1.21338376,1769.4,1769.3,0.00848032]
[1743686388872,0.08285376,1769.4,1769.3,1.13907032]
[1743686389072,0.08285376,1769.4,1769.3,6.24377032]
[1743686389771,1.21338376,1769.4,1769.3,5.11318032]
[1743686390881,1.21338376,1769.4,1769.3,0.00848032]
[1743686391076,6.57678376,1769.4,1769.3,0.00848032]
[1743686393687,6.57678376,1769.4,1769.3,5.36378032]
[1743686394776,6.57678376,1769.4,1769.3,3.2e-07]
[1743686394777,14.11178376,1769.4,1769.3,3.2e-07]
[1743686395483,12.98125376,1769.4,1768.8,40.8]
[1743686395782,4.33864,1768.9,1768.8,40.8]
[1743686395977,9.37364,1768.9,1768.8,40.8]
[1743686396177,9.45649376,1768.9,1768.8,40.8]
[1743686397888,1.21369376,1768.9,1768.8,40.8]
[1743686398879,4.42149376,1768.9,1768.8,40.8]
[1743686399590,1.13091,1768.8,1768.7,0.00848032]
[1743686399795,17.76701,1768.8,1768.7,0.00848032]
[1743686400185,20.34986376,1768.8,1768.7,1e-08]
[1743686400689,17.84986376,1768.8,1768.7,1e-08]
[1743686400890,20.34986376,1768.8,1768.7,1e-08]
[1743686402088,15.31686376,1768.8,1768.7,1e-08]
[1743686402290,17.84986376,1768.8,1768.7,1e-08]
[1743686402489,17.92653182,1768.8,1768.7,1e-08]
[1743686402688,14.94463182,1768.8,1768.7,1e-08]
[1743686403295,17.44463182,1768.8,1768.7,1e-08]
[1743686403499,20.37983182,1768.8,1768.7,1e-08]
[1743686404591,1.13136,1768.1,1768.0,2.8101]
[1743686404797,1.13142,1768.0,1767.9,8.4217]
[1743686405297,1.13142,1768.0,1767.9,9.55318]
[1743686405603,1.29094182,1768.0,1767.9,49.2217]
[1743686405903,1.29094182,1768.0,1767.9,40.8]
[1743686406107,1.13148,1767.9,1767.8,0.00848032]
[1743686406297,9.63598,1767.9,1767.8,0.00848032]
[1743686406504,4.49880182,1767.9,1767.8,0.00848032]
[1743686406802,4.49880182,1767.9,1767.8,40.80848032]
[1743686407190,0.15952182,1767.9,1767.8,44.44003032]
[1743686407398,1.29100182,1767.9,1767.8,40.80848032]
[1743686410605,4.52847974,1767.9,1767.8,40.80848032]
[1743686410906,1.32067974,1767.9,1767.8,40.80848032]
[1743686411106,4.52847974,1767.9,1767.8,40.80848032]
[1743686413999,12.05647974,1767.9,1767.8,40.80848032]
[1743686414399,17.38677974,1767.9,1767.8,40.80848032]
[1743686414905,1.13168,1767.6,1767.5,8.5538]
[1743686415208,1.13187,1767.3,1767.2,1.13191]
[1743686415509,1.32106974,1767.3,1767.2,45.13971]
[1743686416208,1.32106974,1767.3,1767.2,44.0078]
[1743686416712,1.32106974,1767.3,1767.2,50.44553]
[1743686417005,0.18919974,1767.3,1767.2,52.94553]
[1743686417406,1.32106974,1767.3,1767.2,49.3136]
[1743686417809,1.32106974,1767.3,1767.2,50.44553]
[1743686418301,1.32106974,1767.3,1767.2,49.3136]
[1743686418511,4.5435807,1767.3,1767.2,46.1058]
[1743686418708,1.3357807,1767.3,1767.2,46.1058]
[1743686419213,1.3357807,1767.3,1767.2,47.23773]
[1743686420106,0.2039107,1767.3,1767.2,47.23773]
[1743686420309,6.03638,1768.0,1767.4,2.82937]
[1743686420617,1.13156,1767.8,1767.7,1.13156]
[1743686420813,1.13151,1767.9,1767.8,1.13151]
[1743686421115,1.13151,1767.9,1767.8,3.392]
[1743686423010,1.13151,1767.9,1767.8,4.52355]
[1743686423310,1.13151,1767.9,1767.8,3.392]
[1743686425913,1.13161,1767.7,1767.6,2.8633]
[1743686426120,1.13161,1767.7,1767.6,6.3011]
[1743686426619,1.13161,1767.7,1767.6,3.4378]
[1743686427621,1.13168,1767.6,1767.5,2.9597]
[1743686427918,1.1318,1767.4,1767.3,6.1173]
[1743686428322,1.13187,1767.3,1767.2,43.7874]
[1743686428621,4.32687,1767.3,1767.2,40.8]
[1743686429522,7.25567,1767.3,1767.2,40.8]
[1743686429922,1.13193,1767.2,1767.1,0.00848032]
[1743686430117,4.32693,1767.2,1767.1,0.00848032]
[1743686430322,10.03473,1767.2,1767.1,0.00848032]
[1743686430622,10.03473,1767.2,1766.5,11.05974]
[1743686430623,1.13231,1766.7,1766.6,1.13229]
[1743686431012,1.13232,1766.6,1766.5,7.36142]
[1743686431214,1.1323,1766.7,1766.6,1.1323]
[1743686431422,1.13232,1766.6,1766.5,6.2291]
[1743686431622,1.13232,1766.6,1766.5,48.16148]
[1743686433726,1.13232,1766.6,1766.5,47.0291]
[1743686434222,4.45192,1766.6,1766.5,47.0291]
[1743686434418,4.45192,1766.6,1766.5,48.16148]
[1743686435017,0.00848032,1766.7,1766.6,1.13232]
[1743686435522,1.14073032,1766.7,1766.6,1.13232]
[1743686436321,0.00848032,1766.7,1766.6,3.63232]
[1743686436519,0.00848032,1766.7,1766.6,1.13232]
[1743686437128,0.00848032,1766.7,1766.6,3.63232]
[1743686437725,0.00848032,1766.7,1766.6,1.13232]
[1743686438119,0.00848032,1766.7,1766.6,3.63232]
[1743686438421,4.06069,1767.3,1767.2,1.13193]
[1743686438624,1.13189,1767.3,1767.2,1.13193]
[1743686439128,1.13231,1766.7,1766.6,1.13229]
[1743686439424,1.13231,1766.7,1766.6,4.44449]
[1743686439624,1.13231,1766.7,1766.6,3.3122]
[1743686439826,1.13232,1766.6,1766.5,46.9891]
[1743686440119,1.13232,1766.6,1766.5,51.58498]
[1743686440329,3.42718032,1766.8,1766.5,50.4526]
[1743686440520,1.13232,1766.6,1766.5,50.4526]
[1743686440719,1.1323,1766.7,1766.6,1.13229]
[1743686441323,1.1323,1766.7,1766.5,50.4526]
[1743686441324,4.55941032,1766.8,1766.7,1.13225]
[1743686441527,1.13227,1766.7,1766.6,1.13227]
[1743686442631,4.55941032,1766.8,1766.7,1.13225]
[1743686443030,1.13228,1766.7,1766.6,1.13226]
[1743686444034,1.13228,1766.7,1766.6,4.47546]
[1743686444629,4.55943032,1766.8,1766.7,1.13225]
[1743686444934,0.00848032,1766.8,1766.7,4.47545]
[1743686445129,0.00848032,1766.8,1766.7,10.54225]
[1743686445433,1.14067032,1766.8,1766.7,7.33445]
[1743686445634,1.14067032,1766.8,1766.7,4.47545]
[1743686446629,1.13225,1766.7,1766.6,4.12686]
[1743686447128,4.51195,1766.7,1766.6,2.9946]
[1743686447431,4.51195,1766.7,1766.5,40.8]
[1743686447432,1.13232,1766.6,1766.5,40.8]
[1743686447735,1.13232,1766.6,1766.4,1.13807357]
[1743686447736,1.13238,1766.5,1766.4,1.13807357]
[1743686447938,1.13238,1766.5,1766.4,0.00565357]
[1743686448134,1.13238,1766.5,1766.4,41.93810357]
[1743686448135,3.3797,1766.5,1766.4,41.93810357]
[1743686448433,1.1323,1766.7,1766.6,1.05562194]
[1743686448628,4.512,1766.7,1766.6,1.05562194]
[1743686449728,4.512,1766.7,1766.6,41.85562194]
[1743686450631,0.00848032,1766.8,1766.7,1.13225]
[1743686450832,1.14067032,1766.8,1766.7,4.07715]
[1743686451037,0.00848032,1766.8,1766.7,4.07715]
[1743686451234,0.00848032,1766.8,1766.7,7.28495]
[1743686451436,0.00848032,1766.8,1766.7,9.78495]
[1743686451735,0.00848032,1766.8,1766.7,47.37715]
[1743686451938,1.14067032,1766.8,1766.7,47.37715]
[1743686452235,1.14067032,1766.8,1766.7,44.87715]
[1743686452836,0.00848032,1766.8,1766.7,44.87715]
[1743686453034,1.14067032,1766.8,1766.7,40.8]
[1743686453229,4.27327032,1766.8,1766.7,40.8]
[1743686453637,7.48107032,1766.8,1766.7,40.8]
[1743686453832,1.13238,1766.5,1766.4,1.13804357]
[1743686454138,1.13238,1766.5,1766.4,0.00565357]
[1743686454336,1.13238,1766.5,1765.9,3.2078]
[1743686454337,3.2078,1766.5,1765.9,3.2078]
[1743686454643,1.13275,1766.0,1765.8,4.06849]
[1743686454840,3.1326,1765.9,1765.8,4.06849]
[1743686455339,2.94,1766.1,1765.9,1.13273]
[1743686455544,1.13272,1766.0,1765.9,4.02693]
[1743686455733,5.7883,1766.1,1765.9,4.02693]
[1743686456136,1.1327,1766.0,1765.9,4.02693]
[1743686456441,2.8483,1766.0,1765.9,4.02693]
[1743686457736,3.981,1766.0,1765.9,4.02693]
[1743686457936,2.8483,1766.0,1765.9,4.02693]
[1743686458539,3.981,1766.0,1765.9,4.02693]
[1743686458744,3.981,1766.0,1765.9,1.13277]
[1743686458946,2.8483,1766.0,1765.9,1.13277]
[1743686459145,2.8483,1766.0,1765.9,4.24907]
[1743686459547,1.13258,1766.2,1765.9,6.3241]
[1743686459838,1.13258,1766.2,1766.1,1.13258]
[1743686460544,4.19973,1766.3,1766.2,1.13257]
[1743686460749,1.13259,1766.2,1766.1,1.13259]
[1743686460950,4.19979,1766.2,1766.1,1.13259]
[1743686461152,3.0672,1766.2,1766.1,1.13259]
[1743686461856,1.14072032,1766.8,1766.7,1.13225]
[1743686462049,1.14072032,1766.8,1766.4,2.83112]
[1743686462254,0.00848032,1766.8,1766.4,6.03892]
[1743686462450,1.13231,1766.7,1766.6,1.1323]
[1743686463152,1.13232,1766.6,1766.5,44.99004]
[1743686463356,2.9597,1766.7,1766.5,40.8]
[1743686463552,9.34612,1766.6,1766.5,40.8]
[1743686463753,8.2138,1766.6,1766.4,1.13242]
[1743686463950,2.9597,1766.5,1766.4,1.13242]
[1743686464151,4.09212,1766.5,1766.4,40.8]
[1743686464854,4.09208,1766.5,1766.4,41.93245]
[1743686465456,2.9597,1766.5,1766.4,41.93245]
[1743686465854,0.00848032,1766.8,1766.7,1.13225]
[1743686466053,4.27447032,1766.8,1766.7,1.13225]
[1743686466257,3.14228032,1766.8,1766.7,1.13225]
[1743686466460,4.27447032,1766.8,1766.7,1.13225]
[1743686466860,3.14228032,1766.8,1766.7,1.13225]
[1743686467161,0.00848032,1766.8,1766.7,1.13225]
[1743686467961,0.00848032,1766.8,1766.7,4.00485]
[1743686469148,1.13276,1766.0,1765.7,0.00848031]
[1743686469356,1.13277,1766.0,1765.8,1.13279]
[1743686469561,2.9552,1765.9,1765.8,1.13279]
[1743686470059,2.9552,1765.9,1765.8,41.93279]
[1743686470454,1.1327,1766.0,1765.9,1.13273]
[1743686470656,3.1041,1766.1,1766.0,1.1327]
[1743686470964,1.13263,1766.2,1766.1,1.13264]
[1743686470965,1.13262,1766.2,1766.1,1.13264]
[1743686471159,2.9662,1766.4,1766.0,2.83173]
[1743686471354,2.9662,1766.4,1766.1,6.2]
[1743686471558,6.0703,1766.4,1766.1,2.9922]
[1743686471760,1.13251,1766.3,1766.2,4.12473]
[1743686472060,3.1041,1766.3,1766.2,4.12473]
[1743686472258,4.23661,1766.3,1766.2,4.12473]
[1743686472649,3.2078,1766.5,1766.2,2.9922]
[1743686472854,7.44429,1766.5,1766.4,1.13245]
[1743686473455,6.3119,1766.5,1766.2,2.9922]
[1743686473660,1.13248,1766.4,1766.3,1.1325]
[1743686473854,3.0307,1766.4,1766.2,4.12474]
[1743686474052,1.13251,1766.3,1766.1,5.7778]
[1743686474258,1.13251,1766.3,1766.2,1.13257]
[1743686474655,4.16316,1766.4,1766.3,1.13251]
[1743686475450,3.0307,1766.4,1766.1,8.8133]
[1743686475652,3.0307,1766.4,1766.1,5.9452]
[1743686475857,3.0307,1766.4,1766.3,1.13251]
[1743686476461,4.16315,1766.4,1766.3,1.13251]
[1743686477462,3.0307,1766.4,1766.1,2.9097]
[1743686477759,3.0307,1766.4,1766.1,1.13262]
[1743686477760,1.13257,1766.2,1766.1,1.13262]
[1743686477964,9.06975,1766.4,1765.9,2.5606]
[1743686478266,1.13254,1766.3,1766.2,1.13253]
[1743686478469,3.70144,1766.3,1766.2,1.13253]
[1743686478658,2.5689,1766.3,1766.2,1.13253]
[1743686479466,3.2078,1766.6,1766.2,2.83131]
[1743686479665,3.71043,1766.5,1766.4,1.13243]
[1743686480065,3.71043,1766.5,1766.3,5.97985]
[1743686480066,1.13245,1766.4,1766.3,5.97985]
[1743686480258,2.578,1766.4,1766.3,5.97985]
[1743686481457,3.71045,1766.4,1766.3,3.58745]
[1743686481661,1.13251,1766.3,1766.2,1.13252]
[1743686481869,3.71051,1766.3,1766.2,1.13252]
[1743686482767,1.13257,1766.2,1766.1,1.1326]
[1743686483067,3.66877,1766.2,1766.1,1.1326]
[1743686483467,1.13264,1766.1,1766.0,3.58765]
[1743686483662,3.66884,1766.1,1766.0,3.58765]
[1743686484063,1.1327,1766.0,1765.9,1.13273]
[1743686484260,1.1327,1766.0,1765.8,46.4022]
[1743686484261,1.13277,1765.9,1765.8,41.9328]
[1743686484568,1.13283,1765.8,1765.7,0.00848031]
[1743686484762,1.13283,1765.8,1765.7,1.14137031]
[1743686484763,5.744,1765.8,1765.7,1.14137031]
[1743686484968,2.5362,1765.8,1765.7,41.94137031]
[1743686485568,3.66903,1765.8,1765.7,41.94137031]
[1743686486777,6.87683,1765.8,1765.7,40.80848031]
[1743686487067,9.37683,1765.8,1765.7,40.80848031]
[1743686487268,2.83228,1765.7,1765.2,2.3947]
[1743686487474,4.34097,1765.3,1765.2,1.13318]
[1743686487671,1.13329,1765.1,1764.8,4.9546]
[1743686487969,1.13329,1765.1,1764.9,41.93341]
[1743686487970,1.13337,1765.0,1764.9,41.93341]
[1743686488177,3.58927,1765.0,1764.9,41.93341]
[1743686488469,2.4559,1765.0,1764.9,41.93341]
[1743686488677,3.58924,1765.0,1764.9,41.93341]
[1743686489175,3.58924,1765.0,1764.9,40.8]
[1743686489376,3.58924,1765.0,1764.9,41.93341]
[1743686489570,2.4559,1765.0,1764.9,41.93341]
[1743686489765,3.58924,1765.0,1764.9,40.8]
[1743686491869,6.08924,1765.0,1764.9,40.8]
[1743686493376,3.58924,1765.0,1764.9,40.8]
[1743686494776,6.08924,1765.0,1764.9,40.8]
[1743686495483,1.1336,1764.6,1764.5,1.1336]
[1743686496079,1.1336,1764.6,1764.5,40.8]
[1743686496377,1.1336,1764.6,1764.5,41.93366]
[1743686496681,1.1336,1764.6,1764.5,40.8]
[1743686496872,3.6118,1764.6,1764.5,40.8]
[1743686497974,6.8196,1764.6,1764.5,40.8]
[1743686498173,1.13373,1764.4,1764.3,1.13378]
[1743686498474,1.13379,1764.3,1764.2,3.6989]
[1743686498673,4.34159,1764.3,1764.2,40.8]
[1743686498875,1.13389,1764.2,1764.1,1.13386]
[1743686499078,4.34159,1764.3,1764.2,1.13386]
[1743686499275,4.35007032,1764.3,1764.2,41.93386]
[1743686499476,4.35007032,1764.3,1764.2,40.8]
[1743686499870,4.35007032,1764.3,1764.2,41.93386]
[1743686500070,0.00848032,1764.3,1764.2,40.8]
[1743686500275,0.00848032,1764.3,1764.2,44.49896]
[1743686500485,0.00848032,1764.3,1764.2,49.42156]
[1743686500781,1e-08,1764.3,1764.2,49.42156]
[1743686503388,1e-08,1764.3,1764.2,46.92156]
[1743686504384,1e-08,1764.3,1764.2,49.42156]
[1743686505179,1e-08,1764.3,1764.2,54.40856]
[1743686507277,1e-08,1764.3,1764.2,49.42156]
[1743686507476,1e-08,1764.3,1764.2,51.90756]
[1743686507881,1e-08,1764.3,1764.2,46.92156]
[1743686508183,1.13379001,1764.3,1764.2,44.49896]
[1743686508383,3.45709001,1764.3,1764.2,41.93386]
[1743686508886,3.45709001,1764.3,1764.2,40.8]
[1743686509187,6.66489001,1764.3,1764.2,40.8]
[1743686509380,13.01610001,1764.3,1763.6,6.04338]
[1743686509586,1.13399,1764.0,1763.8,1.13406]
[1743686509781,3.2078,1764.1,1763.8,1.13406]
[1743686509980,1.13399,1764.0,1763.9,41.93401]
[1743686510181,1.13399,1764.0,1763.4,4.985]
[1743686510182,10.22885,1764.0,1763.4,3.2078]
[1743686510485,10.22885,1764.0,1763.2,2.83613]
[1743686510486,1.13437,1763.4,1763.3,2.3552]
[1743686510679,1.13437,1763.4,1763.3,40.8]
[1743686510880,1.13437,1763.4,1763.3,41.93444]
[1743686511280,1.13437,1763.4,1763.3,40.8]
[1743686511488,3.54317,1763.4,1763.3,40.8]
[1743686511690,2.4088,1763.4,1763.3,40.8]
[1743686511982,3.2078,1763.6,1763.5,1.13431]
[1743686512176,5.73267,1763.9,1763.7,1.13413]
[1743686512383,2.4088,1763.8,1763.7,1.13413]
[1743686512986,3.2078,1764.0,1763.9,1.13405]
[1743686513185,1.13417,1763.8,1763.6,1.13423]
[1743686513384,2.3105,1763.9,1763.5,6.0435]
[1743686513687,2.3105,1763.9,1763.6,2.3101]
[1743686513890,1.13416,1763.8,1763.6,3.44431]
[1743686514084,2.3105,1763.9,1763.6,3.44431]
[1743686514085,2.3105,1763.7,1763.6,3.44431]
[1743686514682,2.3105,1763.7,1763.3,40.8]
[1743686514985,2.3105,1763.7,1763.3,43.2351]
[1743686515186,3.2078,1764.0,1763.7,1.13414]
[1743686515488,2.3105,1763.9,1763.7,1.13414]
[1743686515788,1.13411,1763.8,1763.7,1.13414]
[1743686515984,3.4446,1763.9,1763.7,1.13414]
[1743686516185,2.3105,1763.9,1763.8,1.13411]
[1743686518282,3.44455,1763.9,1763.8,1.13411]
[1743686518476,2.3105,1763.9,1763.7,5.87774]
[1743686518681,1.13411,1763.8,1763.7,5.87774]
[1743686518883,2.3105,1763.9,1763.8,1.13411]
[1743686519887,3.44455,1763.9,1763.8,1.13411]
[1743686520089,1.13414,1763.8,1763.4,5.18422]
[1743686520288,2.4225,1763.7,1763.6,1.13424]
[1743686521190,3.2078,1764.1,1764.0,1.13399]
[1743686521385,4.7884,1764.2,1763.7,5.26185]
[1743686521591,4.7884,1764.2,1763.8,2.2779]
[1743686521891,1.13396,1764.1,1763.9,1.13402]
[1743686522091,2.2719,1764.0,1763.9,1.13402]
[1743686522292,3.4998,1764.2,1764.1,1.13392]
[1743686522481,5.7717,1764.2,1764.0,1.13396]
[1743686522686,1.13399,1764.1,1763.8,2.2779]
[1743686522985,1e-08,1764.3,1764.2,1.13386]
[1743686523391,3.40569001,1764.3,1764.1,2.4443]
[1743686523591,3.40569001,1764.3,1764.2,1.13386]
[1743686523986,1.13386,1764.2,1764.1,3.5782]
[1743686524188,3.40581,1764.2,1763.9,9.7476]
[1743686524392,2.2719,1764.2,1764.1,1.13392]
[1743686525093,1e-08,1764.3,1764.2,1.13386]
[1743686525893,2.24620001,1764.3,1764.2,1.13386]
[1743686526495,2.24620001,1764.3,1764.0,2.4443]
[1743686526496,1.13388,1764.2,1764.0,2.4443]
[1743686526685,2.2462,1764.1,1764.0,3.57829]
[1743686526889,1e-08,1764.3,1764.2,1.13386]
[1743686527290,1e-08,1764.3,1764.2,3.51886]
[1743686527493,1e-08,1764.3,1764.2,5.90256]
[1743686527798,1e-08,1764.3,1764.2,10.87956]
[1743686528597,1e-08,1764.3,1764.2,51.67956]
[1743686529300,1e-08,1764.3,1764.2,46.70256]
[1743686529596,1e-08,1764.3,1764.2,49.20256]
[1743686529795,1e-08,1764.3,1764.2,46.70256]
[1743686530988,1e-08,1764.3,1764.2,40.8]
[1743686531295,1e-08,1764.3,1764.2,1.13386]
[1743686531492,1e-08,1764.3,1764.2,3.52526]
[1743686531805,1e-08,1764.3,1764.2,46.69656]